Cogmind - Beta 15 @@@ ROGUE MODE // 2025.07.30 @ 21:47:52 Player: GiggleBox Result: Destroyed by S-43 Plague with Heavy Machine Gun Performance ------------- Evolutions (7) 3500 Regions Visited (18) 3600 Robots Destroyed (353) 1765 Value Destroyed (13315) 13315 Prototype IDs (45) 900 Alien Tech Used (2) 400 Bonus (7559) 7559 TOTAL SCORE: 31039 Bonus ------- High Alert Combat Kills 1524 Follower Combat Kills 812 Registered with UFD 300 Met Optimus in HQ 500 Met Zhirov 300 Met Warlord at Base 500 MAIN.C Attacked Warlord 500 Warlord Defense Kills 3946 Friendly Fire -823 Cogmind --------- Core Integrity 0/1300 Matter 294/300 Energy 90/100 System Corruption 0% Temperature Cool (0) Movement Core (150) Ox2 Location -3/Research Parts ------- > --- POWER (2) -------- (None) > --- PROPULSION (6) --- (None) > --- UTILITY (8) ------ (None) > --- WEAPON (5) ------- Compact HERF Cannon > --- INVENTORY (5) ---- Experimental Thermal Generator Makeshift ECM Suite Compact HERF Cannon Gauss Rifle Peak State ------------ > --- POWER ------------ Reinforced Fission Core Reinforced Antimatter Reactor > --- PROPULSION ------- Armored Medium Treads Armored Medium Treads Armored Medium Treads Experimental Biometal Heavy Treads > --- UTILITY ---------- Huge Storage Unit Advanced Signal Interpreter Improved Targeting Computer Experimental Core Analyzer Experimental Core Analyzer Experimental Core Analyzer Centrium Light Armor Plating Centrium Light Armor Plating > --- WEAPON ----------- Hypervelocity Coil Gun Hypervelocity Coil Gun Hypervelocity Coil Gun Railgun > --- INVENTORY -------- Medium Treads Advanced Medium Treads Advanced Heat Sink Improved Cooling System Advanced Cooling System Advanced Energy Well High-capacity Matter Pod Experimental Sensor Array Long-range Terrain Scanner Experimental Targeting Computer Improved Weapon Cycler Advanced Phase Shifter Centrium Light Armor Plating Graphene Brace Advanced Shield Generator Long-range Tractor Beam Mapping Drone Bay Mapping Drone Bay Transdimensional Reconstructor KE Penetrator KE Penetrator KE Penetrator Hypervelocity Mass Driver Heavy Shock Bomb Launcher Powered Hammer [Rating: 148] Favorites ----------- Power Reinforced Fission Core Engine Reinforced Deuterium Engine Power Core Reinforced Fission Core Reactor Reinforced Antimatter Reactor Propulsion Light Treads Treads Light Treads Leg Myomer Leg Utility Experimental Core Analyzer Device Advanced Heat Sink Storage High-capacity Storage Unit Processor Experimental Core Analyzer Hackware Hacking Suite Protection Centrium Light Armor Plating Weapon Enhanced Autogun Energy Gun Heavy Beamcaster Energy Cannon Improved Matter Neutralizer Ballistic Gun Enhanced Autogun Ballistic Cannon Magnetic Acceleration Cannon Launcher Heavy Shock Bomb Launcher Special Weapon CPS Tube Impact Weapon Heavy Mace Build | -11 -10 -9 -9 -8 -7 -7 -7 -7 -5 -5 -5 -5 -4 -4 -4 -4 -3 -3 ------- Run | Yrd Mat Mat Min Mat Fac Sto Rec Scr Fac Upp Upp Zhi Pro Fac Upp War Pro Res Slots Evolved 14 | . . 2 . 2 2 . . . 4 . . . . 2 . . . 2 Power 1 | . . . . . . . . . 1 . . . . . . . . . Propulsion 4 | . . 1 . 1 . . . . . . . . . 1 . . . 1 Utility 6 | . . . . 1 1 . . . 3 . . . . 1 . . . . Weapon 3 | . . 1 . . 1 . . . . . . . . . . . . 1 Parts Attached 204 | 8 6 31 4 16 10 5 5 5 50 7 . 3 1 12 . 24 5 12 Power 22 | 1 . 7 . . 1 1 . . 4 . . . . 1 . 3 1 3 Engine 11 | 1 . 7 . . 1 1 . . 1 . . . . . . . . . Core 5 | . . . . . . . . . 3 . . . . . . 1 1 . Reactor 6 | . . . . . . . . . . . . . . 1 . 2 . 3 Propulsion 54 | 2 . 13 . 7 4 2 4 . 9 . . . 1 1 . 9 1 1 Treads 45 | 2 . 13 . 7 4 2 3 . 9 . . . 1 1 . 3 . . Leg 9 | . . . . . . . 1 . . . . . . . . 6 1 1 Wheel . | . . . . . . . . . . . . . . . . . . . Hover . | . . . . . . . . . . . . . . . . . . . Flight . | . . . . . . . . . . . . . . . . . . . Utility 65 | 2 3 3 4 4 2 2 . 5 20 . . 3 . 6 . 7 . 4 Device 31 | 1 . 1 2 2 1 1 . 4 11 . . 1 . 1 . 3 . 3 Storage 7 | 1 2 . 1 . . . . . 1 . . 1 . 1 . . . . Processor 12 | . . . . . 1 . . . 4 . . . . 4 . 3 . . Hackware 1 | . . . 1 . . . . . . . . . . . . . . . Protection 14 | . 1 2 . 2 . 1 . 1 4 . . 1 . . . 1 . 1 Artifact . | . . . . . . . . . . . . . . . . . . . Weapon 63 | 3 3 8 . 5 3 . 1 . 17 7 . . . 4 . 5 3 4 Energy Gun 3 | 1 . . . . . . . . 1 . . . . . . . 1 . Energy Cannon 5 | . . . . . . . . . 2 . . . . . . . . 3 Ballistic Gun 46 | 2 3 8 . 5 2 . 1 . 11 5 . . . 3 . 4 1 1 Ballistic Cannon 3 | . . . . . . . . . 1 1 . . . . . 1 . . Launcher 2 | . . . . . . . . . 1 1 . . . . . . . . Special Weapon 1 | . . . . . . . . . 1 . . . . . . . . . Impact Weapon 3 | . . . . . 1 . . . . . . . . 1 . . 1 . Slashing Weapon . | . . . . . . . . . . . . . . . . . . . Piercing Weapon . | . . . . . . . . . . . . . . . . . . . Special Melee Weapon . | . . . . . . . . . . . . . . . . . . . Unidentified Prototypes 24 | . . 2 1 1 . . . . 8 . . 4 . . . 6 . 2 Corrupted Parts 1 | . . . . . . . . . . . . . . . . 1 . . System Corruption 4 | . . . . . . . . . . . . . . . . 4 . . Parts Lost 77 | . . 3 . 2 . 2 2 . 22 2 . . 1 1 . 25 10 7 Power 7 | . . 2 . . . . . . 2 . . . . . . 2 1 . Propulsion 25 | . . 1 . 2 . 1 1 . 4 . . . 1 1 . 7 3 4 Utility 16 | . . . . . . . . . 5 . . . . . . 6 3 2 Weapon 29 | . . . . . . 1 1 . 11 2 . . . . . 10 3 1 Highest Loss Streak 21 | . . 2 . 1 . 1 2 . 9 2 . . 1 1 . 21 9 2 To Critical Strikes 1 | . . . . . . . . . 1 . . . . . . . . . Average Backups 19 | 3 15 19 19 19 19 19 16 19 18 23 23 23 23 23 24 21 6 12 Power . | . 1 . 1 2 1 1 1 1 . . . . . . . . . . Propulsion 2 | 1 2 3 4 2 3 2 1 2 4 4 4 4 3 1 2 1 1 . Utility 8 | . 2 4 4 4 6 8 9 9 10 14 13 13 13 13 14 13 4 5 Weapon 6 | . 8 9 9 8 7 7 5 5 3 4 6 6 6 7 7 5 . 6 Tool/Special . | . . . . . . . . . . . . . . . . . . . Unused Backups 50 | . 3 8 4 4 6 2 . 2 . 1 . . . 2 . 7 . 11 Power 3 | . 1 1 . . . . . . . . . . . . . . . 1 Propulsion 2 | . . 2 . . . . . . . . . . . . . . . . Utility 23 | . 2 2 . . 1 2 . 2 . 1 . . . 2 . 6 . 5 Weapon 20 | . . 3 4 3 4 . . . . . . . . . . 1 . 5 Tool/Special 2 | . . . . 1 1 . . . . . . . . . . . . . Average Slot Usage (%) 94 | . 100 99 100 99 99 99 100 95 90 87 88 88 88 93 94 81 96 55 Engine 6 | . 14 10 11 9 7 7 7 7 5 . . . . . . . . . Core 3 | . . . . . . . . . 4 11 11 11 11 10 10 6 9 3 Treads 24 | . 28 32 33 36 30 29 30 30 16 11 11 11 11 20 21 15 . . Leg 1 | . . . . . . . . . . . . . . . . 2 25 17 Device 8 | . 2 . 10 9 9 7 7 8 16 15 17 16 17 12 5 4 9 13 Storage 7 | . 14 11 11 9 7 7 7 7 5 5 5 5 5 5 5 4 5 3 Processor 7 | . . . . . 5 7 7 2 8 11 11 11 11 18 26 25 20 8 Protection 6 | . 11 10 . 8 6 7 7 6 6 6 5 5 5 5 5 3 4 1 Ballistic Gun 25 | . 28 33 33 27 30 29 30 29 20 18 23 23 23 20 21 15 4 . Peak Build Rating 148 | 7 11 22 30 35 44 44 48 50 128 129 129 132 131 147 147 148 120 108 Average Rating 65 | 5 10 18 22 33 40 41 44 47 100 121 128 129 129 143 145 122 114 77 On Entrance 70 | . 7 11 22 23 33 40 44 45 46 119 128 129 131 125 143 146 87 58 Naked Turns 65 | . . . . . . . . . . . . . . . . . . 65 Heaviest Build 157 | 12 50 62 62 69 67 73 74 86 146 153 147 147 147 148 142 157 150 146 Greatest Support 166 | 40 40 60 60 80 80 80 80 80 160 160 160 160 160 166 166 166 134 116 Greatest Overweight (x) 34 | 2 1 1 1 . . . . 1 1 . . . 1 1 . 34 1 2 Average Overweight (x) . | . . . . . . . . . . . . . . . . . . . Largest Inventory Capacity 25 | 8 20 20 25 20 20 20 20 20 25 25 25 25 25 25 25 25 25 25 Average Capacity 21 | 7 17 20 20 20 20 20 20 20 21 25 25 25 25 25 25 23 25 23 Most Carried 25 | 4 20 20 20 20 20 20 19 20 23 25 25 25 25 25 25 25 9 19 Average Carried 19 | 3 15 19 19 19 19 19 16 19 18 24 24 24 24 24 24 21 6 12 Final Capacity 25 | 8 20 20 20 20 20 20 20 20 25 25 25 25 25 25 25 25 25 5 Final Carried 25 | 4 20 20 20 20 20 18 18 18 22 24 24 25 23 24 25 10 7 4 Class Distribution -------------------- 38% | Scavenger-Tank 28% | Scavenger-Gunner 10% | Mutant 9% | Tank 4% | Scavenger-Mutant 4% | Gunner 3% | Scavenger-Skirmisher Dominant Class ---------------- Mutant | -10/Materials Scavenger-Tank | -9/Materials Gunner | -9/Mines Tank | -8/Materials Scavenger-Tank | -7/Factory Scavenger-Tank | -7/Storage Scavenger-Tank | -7/Recycling Scavenger-Tank | -7/Scraptown Scavenger-Tank | -5/Factory Scavenger-Gunner | -5/Upper Caves Scavenger-Gunner | -5/Upper Caves Scavenger-Gunner | -5/Zhirov Scavenger-Gunner | -4/Proximity Caves Scavenger-Gunner | -4/Factory Scavenger-Gunner | -4/Upper Caves Scavenger-Gunner | -4/Warlord Scavenger-Gunner | -3/Proximity Caves Scavenger-Mutant | -3/Research Resources | -11 -10 -9 -9 -8 -7 -7 -7 -7 -5 -5 -5 -5 -4 -4 -4 -4 -3 -3 ----------- Run | Yrd Mat Mat Min Mat Fac Sto Rec Scr Fac Upp Upp Zhi Pro Fac Upp War Pro Res Matter Collected 13257 | 262 756 1315 263 1250 578 1451 354 974 2633 236 170 180 150 962 120 1347 172 84 Remotely 2401 | . . . . . . . . 847 982 . . . . . . 572 . . Salvage Created 16967 | 99 446 1578 246 1921 722 1212 791 237 3569 220 352 238 120 1416 370 2370 269 791 Parts 853 | 6 41 117 19 93 35 55 25 11 175 11 19 . 7 93 13 93 9 31 Haulers Intercepted 16 | . . 4 . 4 2 1 . . 3 . . . . 1 . . . 1 Recyclers Shooed 7 | . 1 . . . . . . . 3 . . . . 2 . . . 1 Parts Field Recycled 13 | . . . . . . . . 13 . . . . . . . . . . Retrieved Matter 27 | . . . . . . . . 27 . . . . . . . . . . Parts Self-Destructed 55 | . . . . . . . . . . 10 15 . 8 . 13 . 9 . Prevented 4 | . . . . . . . . . . 2 . . 2 . . . . . Kills | -11 -10 -9 -9 -8 -7 -7 -7 -7 -5 -5 -5 -5 -4 -4 -4 -4 -3 -3 ------- Run | Yrd Mat Mat Min Mat Fac Sto Rec Scr Fac Upp Upp Zhi Pro Fac Upp War Pro Res Combat Hostiles Destroyed 263 | . 13 33 10 34 9 20 7 4 56 4 4 . 4 14 5 32 7 7 Melee 1 | . . . . . . . . . 1 . . . . . . . . . Guns 237 | . 13 33 10 34 9 19 7 4 51 2 4 . 4 14 5 25 3 . Cannons 7 | . . . . . . . . . 1 2 . . . . . . 3 1 AOE 9 | . . . . . . . . . 3 . . . . . . 6 . . Classes Destroyed 26 | 2 5 6 . . 2 . 1 3 3 1 . . . . . 2 1 . Worker 14 | . . 2 1 . . 2 . . 5 . . . . 4 . . . . Builder 16 | . . 2 . 1 . 1 . . 4 . . . . 7 . . . 1 Tunneler 4 | 1 . . 1 . . . . . 2 . . . . . . . . . Hauler 16 | . . 4 . 4 2 1 . . 3 . . . . 1 . . . 1 Recycler 14 | 1 1 1 . . 2 1 5 . 2 . . . . 1 . . . . Operator 4 | . 1 1 . 2 . . . . . . . . . . . . . . Drone 2 | . . . . . . . . . . . . . . . . . 2 . Watcher 17 | . 3 5 . 1 1 . . . 3 . . . . 3 . . . 1 Swarmer 57 | . 7 8 7 4 . . . . 14 . . . 4 5 1 5 2 . Grunt 98 | . 5 14 2 22 4 11 3 . 17 2 2 . . . 2 11 1 2 Brawler 9 | . . 1 . 1 . 1 . . . 1 1 . . . 1 3 . . Duelist 6 | . . 1 1 . . 2 . . 1 . . . . . . 1 . . Protector 6 | . . . . . . . . . 1 . . . . . . 5 . . Sentry 35 | . . 9 . 7 1 4 3 . 4 . . . . 4 1 . 1 1 Demolisher 1 | . . . . . . . 1 . . . . . . . . . . . Specialist 2 | . . . . . . . . . 2 . . . . . . . . . Hunter 18 | . . . . . 2 1 . . 9 . . . . 2 . . . 4 Programmer 19 | . . . . . 2 1 1 . 7 . 1 . . 3 . 4 . . Heavy 1 | . . . . . . . . . 1 . . . . . . . . . Behemoth 2 | . . . . . . . . . . 1 . . . . . . 1 . Striker 1 | . . . . . . . . . . . . . . . . 1 . . Executioner 1 | . . . . . . . . . . . . . . . . 1 . . Subdweller 1 | . 1 . . . . . . . . . . . . . . . . . Federalist 1 | . . . . . . . . 1 . . . . . . . . . . Explorer 1 | . . . . . . . . 1 . . . . . . . . . . Scrapper 2 | . . . . . . . . 2 . . . . . . . . . . Thug 3 | . . . . . . . . . . . . . . . . 3 . . Savage 1 | . . . . . . . . . . . 1 . . . . . . . Butcher 1 | . . . . . . . . . . . . . . . . 1 . . Best Kill Streak 13 | 1 8 7 4 4 3 7 4 1 13 3 3 . 4 13 5 7 3 4 Combat Bots Only 10 | . 3 7 4 3 3 7 4 1 10 3 3 . 4 5 5 7 3 3 Max Kills in Single Turn 4 | 1 1 2 2 2 2 2 2 1 4 1 2 . 2 2 1 3 1 1 Gunslinging 1 | . . 1 1 1 . 1 . . 1 . . . . 1 . 1 . . Exploded 3 | . . . . . . . . . 2 . . . . . . 3 . . Melee 1 | . . . . . . . . . 1 . . . . . . . . . Uniques/NPCs Destroyed . | . . . . . . . . . . . . . . . . . . . Combat | -11 -10 -9 -9 -8 -7 -7 -7 -7 -5 -5 -5 -5 -4 -4 -4 -4 -3 -3 -------- Run | Yrd Mat Mat Min Mat Fac Sto Rec Scr Fac Upp Upp Zhi Pro Fac Upp War Pro Res Hostile Shots Fired 1727 | . 83 87 25 105 44 168 31 5 390 32 6 . 22 108 6 329 119 167 Missed 522 | . 27 17 7 24 13 64 11 1 111 8 2 . 7 22 2 104 38 64 Hits 1205 | . 56 70 18 81 31 104 20 4 279 24 4 . 15 86 4 225 81 103 Melee 14 | . . 1 . . . 1 . . 1 1 . . . . . 1 9 . Projectile 1191 | . 56 69 18 81 31 103 20 4 278 23 4 . 15 86 4 224 72 103 AOE 2 | . . . . . . . . . 2 . . . . . . . . . Critical Strikes 41 | . . 1 . 4 1 . . 3 6 1 . . . 3 . 10 9 3 Actively Blocked 14 | . . . . . . . . . 2 . . . . . . . 9 3 Damage Taken 21933 | . 536 860 152 1256 417 1128 184 101 5855 548 79 . 224 1160 90 4994 2088 2261 Core 3325 | . 143 104 32 148 37 127 6 20 386 20 18 . 14 132 . 599 218 1321 Absorbed by Shields 415 | . . . . . . . . . . . . . . . . 415 . . Reduced by Siege Mode 85 | . . . . . . . . . 11 20 . . . . 19 35 . . Redirected to Shielding 40 | . 40 . . . . . . . . . . . . . . . . . Ignored by Resistances 94 | . . . . . . . . . 94 . . . . . . . . . Regen/Repaired (Parts) 344 | . . 118 . . . . . . . . . . . . . 226 . . Core Remaining (%) 60 | 100 42 . 66 73 . . . 72 . . . . 56 . . . 14 . Volleys Fired 647 | 4 33 68 17 92 36 53 19 5 137 12 6 6 8 39 5 59 20 28 Largest 4 | 2 2 3 3 3 4 4 4 4 4 4 4 4 4 4 4 4 3 2 Hottest 269 | 40 46 75 75 81 100 106 109 109 186 269 140 140 140 140 136 155 227 188 Shots Fired 2162 | 8 66 204 51 275 144 211 76 20 503 48 24 24 33 155 20 206 53 41 Gun 2044 | 8 66 204 51 275 144 211 76 20 478 32 24 24 33 155 20 190 33 . Cannon 107 | . . . . . . . . . 21 16 . . . . . 9 20 41 Launcher 11 | . . . . . . . . . 4 . . . . . . 7 . . Special . | . . . . . . . . . . . . . . . . . . . Kinetic 2056 | 8 66 204 51 275 144 211 76 20 492 40 24 24 33 155 20 199 14 . Thermal 54 | . . . . . . . . . 7 8 . . . . . . 39 . Explosive 4 | . . . . . . . . . 4 . . . . . . . . . Electromagnetic 48 | . . . . . . . . . . . . . . . . 7 . 41 Robot Hit Streak 42 | 4 9 12 10 37 42 13 31 5 19 19 5 11 15 13 19 26 11 5 Robot Miss Streak 6 | 1 3 6 2 4 3 3 2 1 4 2 3 1 5 4 . 6 5 4 Penetration Max 2 | . . . . . . . . . 1 . 1 1 1 1 1 2 . . Secondary Targets 44 | . . 7 4 5 . 4 . . 9 . 1 . 1 2 1 10 . . Max Gunslinging Chain 2 | . . 1 1 1 . 1 . . 1 . 1 . 1 1 1 2 . . Shots Hit Robots 1477 | 6 47 143 34 204 96 152 55 12 344 35 13 15 14 95 16 137 33 26 Core Hits 769 | 4 28 78 13 74 28 64 23 5 197 14 9 14 8 57 10 118 16 9 Critical Kills 46 | . . 1 . . 1 . . . 1 . 5 2 3 9 2 21 1 . Critical Parts Destroyed 54 | . . . . 2 . 2 . . 5 1 2 1 2 10 1 28 . . Critical Strikes 114 | . . 1 . 2 1 2 . . 6 1 9 3 5 19 3 58 2 2 Burn 1 | . . . . . . . . . . . . . . . . . 1 . Meltdown 1 | . . . . . . . . . . . . . . . . . 1 . Destroy 109 | . . 1 . 2 1 1 . . 6 1 9 3 5 19 3 58 . . Corrupt 2 | . . . . . . . . . . . . . . . . . . 2 Smash 1 | . . . . . . 1 . . . . . . . . . . . . Melee Attacks 26 | . . . . . 1 11 . 3 5 . . . . 5 . . 1 . Impact 26 | . . . . . 1 11 . 3 5 . . . . 5 . . 1 . Slashing . | . . . . . . . . . . . . . . . . . . . Piercing . | . . . . . . . . . . . . . . . . . . . Sneak Attacks 1 | . . . . . . . . . 1 . . . . . . . . . Combat Hostiles . | . . . . . . . . . . . . . . . . . . . Follow-up Attacks . | . . . . . . . . . . . . . . . . . . . Damage Inflicted 31199 | 62 683 2364 570 3774 1580 2808 1182 276 8387 955 117 137 120 1748 374 3775 1015 1272 Guns 25131 | 62 683 2291 551 3743 1573 2658 1104 276 6570 493 117 137 120 1689 374 2239 451 . Cannons 2568 | . . . . . . . . . 256 462 . . . . . 82 520 1248 Explosions 2848 | . . . . . . . . . 1394 . . . . . . 1454 . . Melee 187 | . . . . . . 107 . . 49 . . . . . . . 31 . Ramming 465 | . . 73 19 31 7 43 78 . 118 . . . . 59 . . 13 24 Kinetic 25145 | 62 683 2291 551 3743 1573 2658 1104 276 6639 591 117 137 120 1689 374 2321 216 . Thermal 2030 | . . . . . . . . . 187 364 . . . . . 724 755 . Explosive 1394 | . . . . . . . . . 1394 . . . . . . . . . Electromagnetic 1978 | . . . . . . . . . . . . . . . . 730 . 1248 Impact 187 | . . . . . . 107 . . 49 . . . . . . . 31 . Slashing . | . . . . . . . . . . . . . . . . . . . Piercing . | . . . . . . . . . . . . . . . . . . . Highest Corruption 34 | . . . . 5 6 6 7 . 1 1 2 2 2 4 . 28 34 . Average Corruption 5 | . . . . 5 1 4 6 . 1 1 1 2 2 2 . 18 28 . Corruption Purged 12 | . . . . . 5 . . . . . . . . 7 . . . . Corruption Blocked . | . . . . . . . . . . . . . . . . . . . Effects 177 | . . . . 33 10 23 26 . 11 . 10 1 5 6 . 18 34 . Message Errors 43 | . . . . 11 2 4 10 . 2 . 1 1 1 . . . 11 . Matter Fused 29 | . . . . 5 2 4 3 . . . . . 1 2 . 3 9 . Heat Flow Errors 24 | . . . . 5 1 1 1 . 2 . 4 . . 1 . 4 5 . Energy Discharges 26 | . . . . 5 2 2 3 . 3 . 1 . . 2 . 4 4 . Parts Rejected 3 | . . . . 1 . 1 1 . . . . . . . . . . . Parts Fused 5 | . . . . . . 2 . . 1 . . . 1 1 . . . . Data Loss (minor) 21 | . . . . 2 2 4 5 . . . 2 . 1 . . 4 1 . Data Loss (major) 6 | . . . . 2 . 3 . . . . 1 . . . . . . . Misfires 5 | . . . . . . 1 1 . . . . . 1 . . . 2 . Alerts 7 | . . . . 1 1 1 1 . 2 . 1 . . . . . . . Misdirections 2 | . . . . . . . . . . . . . . . . 1 1 . Weapon Failures 6 | . . . . 1 . . 1 . 1 . . . . . . 2 1 . Overload Shots . | . . . . . . . . . . . . . . . . . . . Overflow Damage 117 | . . . . . . 23 . . 35 . . . . . . 1 52 6 Projectiles 58 | . . . . . . . . . . . . . . . . . 52 6 Explosions 1 | . . . . . . . . . . . . . . . . 1 . . Melee 58 | . . . . . . 23 . . 35 . . . . . . . . . Knockbacks 12 | . . . 1 1 . . 2 . 4 . . . . . . 3 . 1 Impact 7 | . . . 1 1 . . 2 . 2 . . . . . . . . 1 Kinetic 5 | . . . . . . . . . 2 . . . . . . 3 . . Secondary . | . . . . . . . . . . . . . . . . . . . Self-Inflicted Damage 23 | . . . . . . . . . . . . . . . . 14 . 9 Shots 1 | . . . . . . . . . . . . . . . . 1 . . Rammed 44 | . 1 11 3 2 1 4 6 . 7 . . . . 4 . . . 5 Targets Rammed 54 | . 1 11 4 2 1 6 8 . 7 . . . . 5 . . 2 7 Kicked 4 | . . . . . . . . . . . . . . . . . 2 2 Crushed 6 | . . . 1 . . 2 2 . . . . . . 1 . . . . Highest Temperature 360 | . 4 273 228 335 175 269 241 51 266 336 196 . . 195 . 360 214 60 Average Temperature 53 | . 1 44 82 93 67 64 62 24 35 137 79 . . 66 . 50 33 24 Received Heat Transfer 3638 | . 108 324 12 720 78 333 48 123 618 165 9 . . 45 18 635 327 75 Effects 1 | . . 1 . . . . . . . . . . . . . . . . Energy Bleed 1 | . . 1 . . . . . . . . . . . . . . . . Siege Activations 6 | . . . . . . . . . 1 1 2 . . . 1 1 . . Total Turns 61 | . . . . . . . . . 4 16 9 . . . 19 13 . . Longest Duration 19 | . . . . . . . . . 4 16 5 . . . 19 13 . . Martial Activations . | . . . . . . . . . . . . . . . . . . . Shielding Activations . | . . . . . . . . . . . . . . . . . . . Robots Disrupted . | . . . . . . . . . . . . . . . . . . . Combat Hostiles . | . . . . . . . . . . . . . . . . . . . Robots Corrupted 9 | . . . . . . 1 . . 1 . . . . . . 1 . 6 Combat Hostiles 8 | . . . . . . 1 . . . . . . . . . 1 . 6 Parts Fried 20 | . . . . . . 2 . . 1 . . . . . . 6 . 11 Impact Corruptions 3 | . . . . . . 1 . . 2 . . . . . . . . . Robots Melted 1 | . . . . . . . . . . . . . . . . . 1 . Combat Hostiles 1 | . . . . . . . . . . . . . . . . . 1 . Parts Melted 7 | . 1 . . . . . . 1 . . . . . . . 3 2 . Heat Transferred 1734 | . . . . . . . . . 185 296 . . . . . 328 925 . Parts Sabotaged 2 | . . . . . . . . . 2 . . . . . . . . . Parts Stolen . | . . . . . . . . . . . . . . . . . . . Parts Stripped . | . . . . . . . . . . . . . . . . . . . Power Chain Reactions 5 | . . . . . . . . . . . . . . . . 5 . . Alert | -11 -10 -9 -9 -8 -7 -7 -7 -7 -5 -5 -5 -5 -4 -4 -4 -4 -3 -3 ------- Run | Yrd Mat Mat Min Mat Fac Sto Rec Scr Fac Upp Upp Zhi Pro Fac Upp War Pro Res Maximum Alert Level 4 | . . 1 1 2 1 1 . . 4 . . . . 1 . . . . Low Security (%) 64 | 100 100 12 95 66 98 67 100 . 20 . . . . 69 . . . 100 Level 1 24 | . . 87 4 27 1 32 . . 2 . . . . 30 . . . . Level 2 1 | . . . . 6 . . . . 3 . . . . . . . . . Level 3 4 | . . . . . . . . . 36 . . . . . . . . . Level 4 5 | . . . . . . . . . 36 . . . . . . . . . Level 5 . | . . . . . . . . . . . . . . . . . . . High Security . | . . . . . . . . . . . . . . . . . . . Max Security . | . . . . . . . . . . . . . . . . . . . Peak Influence 1515 | 5 130 393 218 463 206 381 141 . 1515 . . . . 320 . . . 150 Initial 206 | . . . 138 16 206 45 141 . . . . . . 25 . . . 150 Average 228 | 1 25 276 99 166 70 166 85 . 842 . . . . 111 . . . 46 Influence Increases 8543 | 10 355 979 278 955 316 746 392 . 2317 115 100 . 90 567 100 689 120 414 Destroy 0b10 Robot/C 5300 | . 240 660 200 680 180 420 160 . 1340 80 80 . 80 280 100 560 100 140 Destroy 0b10 Robot/NC 505 | 10 25 75 10 40 25 25 35 . 130 . . . . 80 . 25 10 15 Destroy Leader 1080 | . 56 178 30 160 66 102 . . 306 20 20 . 10 88 . . 10 34 Allied During Kill 239 | . . . . . . 2 26 . 197 . . . . . . 14 . . Successful Hack 173 | . 32 18 8 12 14 43 32 . 14 . . . . . . . . . Select Force Hacks 90 | . . . . . . . 90 . . . . . . . . . . . Disable Machine 315 | . . 15 30 . 30 45 15 . 150 . . . . 30 . . . . Destroy Structure 211 | . 2 3 . 3 1 4 34 . 120 . . . . 44 . . . . Advance Influence 150 | . . . . . . . . . . . . . . . . . . 150 Lose Combat Pursuer 480 | . . 30 . 60 . 105 . . 60 15 . . . 45 . 90 . 75 Influence Decreases 8479 | 10 355 624 591 542 670 484 652 103 805 802 420 505 50 322 385 500 309 350 Entered New Map 2406 | . . . 217 26 249 56 222 103 . 560 158 505 . 15 106 . 189 . Time Decay 5266 | 10 355 594 374 496 421 368 410 . 525 222 262 . 40 302 279 230 88 290 Lost Part 647 | . . 30 . 20 . 20 20 . 180 20 . . 10 5 . 250 32 60 Lost Ally 160 | . . . . . . 40 . . 100 . . . . . . 20 . . Squads Dispatched 45 | . 2 2 1 3 3 6 . . 19 . . . . 3 . . 1 5 Investigation 8 | . . 2 1 1 1 . . . 1 . . . . 1 . . . 1 Extermination 10 | . . . . . 2 2 . . 3 . . . . 2 . . . 1 Reinforcement 15 | . 2 . . 2 . 2 . . 6 . . . . . . . . 3 Assault 6 | . . . . . . 2 . . 3 . . . . . . . 1 . Garrison 6 | . . . . . . . . . 6 . . . . . . . . . Intercept . | . . . . . . . . . . . . . . . . . . . Searches Triggered . | . . . . . . . . . . . . . . . . . . . Construction Impeded 1 | . . . . . . . . . 1 . . . . . . . . . Haulers Reinforced 2 | . . . . . . . . . 1 . . . . . . . . 1 Active Scanning Responses . | . . . . . . . . . . . . . . . . . . . Cargo Convoy Interrupts 1 | . . . . . . . . . 1 . . . . . . . . . Stealth | -11 -10 -9 -9 -8 -7 -7 -7 -7 -5 -5 -5 -5 -4 -4 -4 -4 -3 -3 --------- Run | Yrd Mat Mat Min Mat Fac Sto Rec Scr Fac Upp Upp Zhi Pro Fac Upp War Pro Res Distress Signals 17 | . 2 3 . 2 . 3 1 . 4 . . . . . . . . 2 Communications Jammed 4 | . . . . . . . . . 4 . . . . . . . . . Distress Signals 4 | . . . . . . . . . 4 . . . . . . . . . Times Spotted 457 | . 26 43 12 47 10 39 8 8 95 5 4 . 5 23 5 75 19 33 Peak Tracking Total 19 | . 6 6 4 4 3 9 4 2 12 4 3 . 5 5 5 12 10 19 Tactical Retreats 22 | . 3 1 . 3 . 3 . . 4 1 . . . 1 . 2 . 4 Traps | -11 -10 -9 -9 -8 -7 -7 -7 -7 -5 -5 -5 -5 -4 -4 -4 -4 -3 -3 ------- Run | Yrd Mat Mat Min Mat Fac Sto Rec Scr Fac Upp Upp Zhi Pro Fac Upp War Pro Res Traps Triggered 10 | . 1 1 . 1 5 . . . 1 . . . . 1 . . . . Indirectly . | . . . . . . . . . . . . . . . . . . . Trap Hack Attempts . | . . . . . . . . . . . . . . . . . . . Triggered . | . . . . . . . . . . . . . . . . . . . Disarmed . | . . . . . . . . . . . . . . . . . . . Reprogrammed . | . . . . . . . . . . . . . . . . . . . Reused . | . . . . . . . . . . . . . . . . . . . Traps Extracted . | . . . . . . . . . . . . . . . . . . . Installed . | . . . . . . . . . . . . . . . . . . . Triggered . | . . . . . . . . . . . . . . . . . . . Machines | -11 -10 -9 -9 -8 -7 -7 -7 -7 -5 -5 -5 -5 -4 -4 -4 -4 -3 -3 ---------- Run | Yrd Mat Mat Min Mat Fac Sto Rec Scr Fac Upp Upp Zhi Pro Fac Upp War Pro Res Machines Disabled 22 | . . 1 2 . 2 3 1 1 10 . . . . 2 . . . . Max in Single Turn 1 | . . 1 1 . 1 1 . . 1 . . . . 1 . . . . Garrison Access 1 | . . . . 1 . . . . . . . . . . . . . . Machines Repaired . | . . . . . . . . . . . . . . . . . . . Machines Dismantled . | . . . . . . . . . . . . . . . . . . . Machines Sabotaged . | . . . . . . . . . . . . . . . . . . . Overloaded Fab Kills . | . . . . . . . . . . . . . . . . . . . Hacking | -11 -10 -9 -9 -8 -7 -7 -7 -7 -5 -5 -5 -5 -4 -4 -4 -4 -3 -3 --------- Run | Yrd Mat Mat Min Mat Fac Sto Rec Scr Fac Upp Upp Zhi Pro Fac Upp War Pro Res Machines Accessed 73 | . 7 11 3 9 4 7 8 7 6 2 1 4 . 4 . . . . Terminals 47 | . 6 10 2 8 4 7 4 . 2 1 . . . 3 . . . . Fabricators 3 | . . . . . . . . . 3 . . . . . . . . . Repair Stations 1 | . . 1 . . . . . . . . . . . . . . . . Recycling Units 6 | . 1 . . . . . 4 . . . . . . 1 . . . . Scanalyzers . | . . . . . . . . . . . . . . . . . . . Garrison Access 2 | . . . . 1 . . . . 1 . . . . . . . . . Total Hacks 192 | . 28 30 8 21 8 20 16 21 12 2 1 17 . 8 . . . . Successful 99 | . 12 15 3 8 1 8 5 21 2 2 1 17 . 4 . . . . Failed 92 | . 16 15 4 13 7 12 11 . 10 . . . . 4 . . . . Catastrophic 18 | . 3 3 . 2 1 2 1 . 4 . . . . 2 . . . . Database Lockouts 1 | . . . 1 . . . . . . . . . . . . . . . Manual 97 | . 15 18 7 17 8 10 12 . 4 . . . . 6 . . . . Terminals 124 | . 23 27 7 18 8 20 9 . 4 1 . . . 7 . . . . Fabricators 7 | . . . . . . . . . 7 . . . . . . . . . Repair Stations 3 | . . 3 . . . . . . . . . . . . . . . . Recycling Units 13 | . 5 . . . . . 7 . . . . . . 1 . . . . Scanalyzers . | . . . . . . . . . . . . . . . . . . . Garrison Access 4 | . . . . 3 . . . . 1 . . . . . . . . . Terminal Hacks 64 | . 3 7 3 3 . 5 1 21 . 2 1 17 . 1 . . . . Record 20 | . . . . . . . . 13 . 1 . 5 . 1 . . . . Part Schematic 5 | . . . . . . . 1 . . . . 4 . . . . . . Robot Analysis 15 | . . 1 1 . . 2 . 7 . . . 4 . . . . . . Prototype ID Bank 7 | . 2 1 . . . . . . . . . 4 . . . . . . Open Door 5 | . . . 1 . . 2 . . . 1 1 . . . . . . . Level Access Points 1 | . . . . 1 . . . . . . . . . . . . . . Branch Access Points 3 | . . 1 1 1 . . . . . . . . . . . . . . Terminal Index 2 | . . 1 . 1 . . . . . . . . . . . . . . Alert Level 2 | . . 1 . . . 1 . . . . . . . . . . . . Locate Traps 1 | . . 1 . . . . . . . . . . . . . . . . Hauler Manifests 2 | . 1 1 . . . . . . . . . . . . . . . . Proto ID Catalog 1 | . . . . . . . . 1 . . . . . . . . . . Fabricator Hacks 2 | . . . . . . . . . 2 . . . . . . . . . Build 2 | . . . . . . . . . 2 . . . . . . . . . Repair Station Hacks 2 | . . 2 . . . . . . . . . . . . . . . . Scan Component 1 | . . 1 . . . . . . . . . . . . . . . . Repair 1 | . . 1 . . . . . . . . . . . . . . . . Recycling Unit Hacks 1 | . 1 . . . . . . . . . . . . . . . . . Retrieve Components 1 | . 1 . . . . . . . . . . . . . . . . . Scanalyzer . | . . . . . . . . . . . . . . . . . . . Garrison Access Hacks 1 | . . . . 1 . . . . . . . . . . . . . . Seal Access 1 | . . . . 1 . . . . . . . . . . . . . . Unauthorized Hacks 29 | . 8 6 . 4 1 3 4 . . . . . . 3 . . . . Terminals 25 | . 8 6 . 4 1 3 1 . . . . . . 2 . . . . Botnet 10 | . 1 1 . 2 1 3 1 . . . . . . 1 . . . . Operators 2 | . 1 . . . . . . . . . . . . 1 . . . . Skim 13 | . 6 5 . 2 . . . . . . . . . . . . . . Fabricators . | . . . . . . . . . . . . . . . . . . . Repair Stations . | . . . . . . . . . . . . . . . . . . . Recycling Units 4 | . . . . . . . 3 . . . . . . 1 . . . . Tunnel 3 | . . . . . . . 3 . . . . . . . . . . . Fedlink 1 | . . . . . . . . . . . . . . 1 . . . . Scanalyzers . | . . . . . . . . . . . . . . . . . . . Garrison Access . | . . . . . . . . . . . . . . . . . . . Data Cores Recovered 2 | . 1 . . 1 . . . . . . . . . . . . . . Used 2 | . 1 . . 1 . . . . . . . . . . . . . . Hacking Detections 52 | . 7 11 2 8 4 6 5 . 6 . . . . 3 . . . . Full Trace Events 3 | . 1 1 . . . . 1 . . . . . . . . . . . Feedback Events . | . . . . . . . . . . . . . . . . . . . Feedback Blocked . | . . . . . . . . . . . . . . . . . . . Robot Schematics Acquired . | . . . . . . . . . . . . . . . . . . . Robots Built 2 | . . . . . . . . . 2 . . . . . . . . . Authchips . | . . . . . . . . . . . . . . . . . . . Time 81 | . . . . . . . . . 81 . . . . . . . . . Total Robot Build Rating 2 | . . . . . . . . . 2 . . . . . . . . . Part Schematics Acquired 5 | . . . . . . . 1 . . . . 4 . . . . . . Parts Built 2 | . . . . . . . . . 2 . . . . . . . . . Authchips . | . . . . . . . . . . . . . . . . . . . Time 53 | . . . . . . . . . 53 . . . . . . . . . Total Part Build Rating 12 | . . . . . . . . . 12 . . . . . . . . . Parts Repaired 1 | . . 1 . . . . . . . . . . . . . . . . Time 26 | . . 26 . . . . . . . . . . . . . . . . Parts Recycled . | . . . . . . . . . . . . . . . . . . . Recycled Matter . | . . . . . . . . . . . . . . . . . . . Retrieved Matter . | . . . . . . . . . . . . . . . . . . . Retrieved Components 9 | . 9 . . . . . . . . . . . . . . . . . Parts Scanalyzed . | . . . . . . . . . . . . . . . . . . . Part Schematics Acquired . | . . . . . . . . . . . . . . . . . . . Parts Damaged . | . . . . . . . . . . . . . . . . . . . Bothacking | -11 -10 -9 -9 -8 -7 -7 -7 -7 -5 -5 -5 -5 -4 -4 -4 -4 -3 -3 ------------ Run | Yrd Mat Mat Min Mat Fac Sto Rec Scr Fac Upp Upp Zhi Pro Fac Upp War Pro Res Used RIF Installer . | . . . . . . . . . . . . . . . . . . . Robots Hacked . | . . . . . . . . . . . . . . . . . . . Non-combat . | . . . . . . . . . . . . . . . . . . . Combat . | . . . . . . . . . . . . . . . . . . . Robot Hacks Applied . | . . . . . . . . . . . . . . . . . . . Relay Couplers Released 3 | . . . . . . . . . 3 . . . . . . . . . Programmers 3 | . . . . . . . . . 3 . . . . . . . . . Fabnet Peak Effective % . | . . . . . . . . . . . . . . . . . . . Robots Rewired 7 | . . . . . . . 6 . . . . . . . 1 . . . Allies Hacked 1 | . . . . . . . . . 1 . . . . . . . . . Hacks Repelled . | . . . . . . . . . . . . . . . . . . . Allies | -11 -10 -9 -9 -8 -7 -7 -7 -7 -5 -5 -5 -5 -4 -4 -4 -4 -3 -3 -------- Run | Yrd Mat Mat Min Mat Fac Sto Rec Scr Fac Upp Upp Zhi Pro Fac Upp War Pro Res Total Allies 17 | . . . . . . 2 6 6 2 . . . . . 1 . . . Largest Group 9 | . . . . . . 2 6 9 9 . . . . . 1 1 . . Highest-Rated Group 392 | . . . . . . 62 148 392 392 . . . . . 47 47 . . Highest-Rated Ally 65 | . . . . . . 31 34 65 65 . . . . . 47 47 . . Total Orders . | . . . . . . . . . . . . . . . . . . . Ally Attacks 188 | . . . . . . 17 12 39 114 . . . . . . 6 . . Total Damage 4777 | . . . . . . 250 298 698 3321 . . . . . . 210 . . Kills 32 | . . . . . . 1 1 6 23 . . . . . . 1 . . Allies Corrupted . | . . . . . . . . . . . . . . . . . . . Allies Melted 9 | . . . . . . . . 6 . . . . . . . 3 . . Intel | -11 -10 -9 -9 -8 -7 -7 -7 -7 -5 -5 -5 -5 -4 -4 -4 -4 -3 -3 ------- Run | Yrd Mat Mat Min Mat Fac Sto Rec Scr Fac Upp Upp Zhi Pro Fac Upp War Pro Res Active Infowar (turns) 4928 | 75 337 123 806 126 920 51 . . 495 . . . . . 893 509 . 593 Sensors 2063 | . . . 1 . 611 49 . . . . . . . . 893 509 . . Traps 595 | . . . . . . 2 . . . . . . . . . . . 593 Seismic 1775 | 75 337 123 805 126 309 . . . . . . . . . . . . . Jamming 495 | . . . . . . . . . 495 . . . . . . . . . Robot Analysis Total 15 | . . 1 1 . . 2 . 7 . . . 4 . . . . . . Derelict Logs Recovered 4 | . . . 2 . . . . . . . . . 1 . 1 . . . Drone Launches . | . . . . . . . . . . . . . . . . . . . Drone Recoveries . | . . . . . . . . . . . . . . . . . . . Exploration | -11 -10 -9 -9 -8 -7 -7 -7 -7 -5 -5 -5 -5 -4 -4 -4 -4 -3 -3 ------------- Run | Yrd Mat Mat Min Mat Fac Sto Rec Scr Fac Upp Upp Zhi Pro Fac Upp War Pro Res Turns Passed 21496 | 145 1900 2526 861 1492 1302 854 994 3056 1883 472 560 283 524 1073 950 1268 650 703 Spaces Moved 10366 | 77 709 1143 489 666 639 369 514 1429 838 278 353 171 323 535 520 597 307 409 Core 179 | 8 . . . . . . . . . . . . . . . 54 . 117 Treads 9489 | 69 709 1143 489 666 639 369 514 1429 838 278 353 171 323 535 520 444 . . Legs 698 | . . . . . . . . . . . . . . . . 99 307 292 Wheels . | . . . . . . . . . . . . . . . . . . . Hover . | . . . . . . . . . . . . . . . . . . . Flight . | . . . . . . . . . . . . . . . . . . . Fastest Speed 50 | 50 160 160 160 160 160 160 160 160 147 147 147 147 147 155 161 50 118 50 Average Speed 167 | 152 195 183 160 160 160 160 160 189 153 147 147 147 155 160 161 162 185 130 Slowest Speed 1750 | 160 240 240 240 160 160 160 160 240 243 147 147 147 230 238 161 1750 190 240 Overloaded Moves . | . . . . . . . . . . . . . . . . . . . Propulsion Burnouts . | . . . . . . . . . . . . . . . . . . . Robots Hopped . | . . . . . . . . . . . . . . . . . . . Potential Cave-ins 2 | . . . . . . . . . . . . . . . . 2 . . Cave-ins Triggered 2 | . . . . . . . . . . . . . . . . 2 . . Teleports 1 | . . . . . . . . . . . . . . . . 1 . . Exploration Rate (%) 56 | 4 99 95 96 61 16 49 87 90 21 49 57 62 56 18 69 65 54 19 Regions Visited 18 Branch Regions 11 Pre-discovered Areas 12 | . 2 2 2 . . . 3 . . . . 3 . . . . . . Known Exits Taken 11 | . 1 1 1 1 1 1 1 . . . . . . 1 1 1 1 . Unknown Exits Taken 7 | 1 . . . . . . . 1 1 1 1 1 1 . . . . . Scrap Searched 13 | . . . 1 . . . . 2 . 3 1 . . . 4 . 2 . Spaces Dug 8 | . . . . . . . . . 3 . . . . 5 . . . . Terrain Destroyed 112 | . . . . . . . . . 37 5 2 1 3 27 4 24 9 . Melee 8 | . . . . . . . . . 3 . . . . 5 . . . . Projectile 61 | . . . . . . . . . 18 5 . . . 19 3 7 9 . AOE 25 | . . . . . . . . . 14 . . . . . . 11 . . Terrain Rammed . | . . . . . . . . . . . . . . . . . . . Walls Destroyed . | . . . . . . . . . . . . . . . . . . . Machines Disabled . | . . . . . . . . . . . . . . . . . . . Actions | -11 -10 -9 -9 -8 -7 -7 -7 -7 -5 -5 -5 -5 -4 -4 -4 -4 -3 -3 --------- Run | Yrd Mat Mat Min Mat Fac Sto Rec Scr Fac Upp Upp Zhi Pro Fac Upp War Pro Res Total 13340 | 94 1152 1464 546 932 889 542 640 1760 1198 321 384 191 332 642 619 757 344 533 Wait 1510 | 2 369 147 19 125 160 76 19 299 76 9 24 2 . 23 65 35 2 58 Move 10348 | 76 708 1142 488 665 638 368 513 1428 837 277 352 170 322 534 519 596 306 409 Hop . | . . . . . . . . . . . . . . . . . . . Pick Up 180 | 4 19 23 6 13 15 4 1 7 36 7 1 2 . 11 2 13 4 12 Fast Attach 53 | 7 2 1 . 2 . 1 1 1 10 . . 5 . . . 17 . 6 Attach 87 | . . 7 . 4 5 3 2 3 30 3 . . 2 3 . 11 8 6 Detach 18 | . . . . . . . . 1 11 . . . . . . . 1 5 Swap 170 | 1 12 26 7 12 17 13 5 5 30 8 . 1 . 17 3 12 . 1 Drop 150 | . 8 39 5 17 16 7 1 6 19 5 1 5 . 5 1 14 . 1 Fire 647 | 4 33 68 17 92 36 53 19 5 137 12 6 6 8 39 5 59 20 28 Melee 26 | . . . . . 1 11 . 3 5 . . . . 5 . . 1 . Ram 5 | . . . . . . . . . . . . . . . . . . 5 Kick 4 | . . . . . . . . . . . . . . . . . 2 2 Crush 45 | . 1 11 4 2 1 6 8 . 7 . . . . 5 . . . . Escape Stasis . | . . . . . . . . . . . . . . . . . . . Rewire 97 | . . . . . . . 71 2 . . . . . . 24 . . . Trap . | . . . . . . . . . . . . . . . . . . . Miscellaneous . | . . . . . . . . . . . . . . . . . . . Route ------- -11/Scrapyard -10/Materials (discovered 6 exits: *Mat x3 / [*Min x2] / [*Sub]) -9/Materials (discovered 4 exits: *Mat x3 / *Min) -9/Mines (discovered 4 exits: *Mat x2 / [*Exi] / [*Zio]) -8/Materials (discovered 3 exits: *Fac x3) -7/Factory -7/Storage -7/Recycling (discovered 2 exits: *Fac / *Scr) -7/Scraptown (discovered 2 exits: *Fac x2) -5/Factory -5/Upper Caves -5/Upper Caves (discovered 2 exits: *Fac / *Zhi) -5/Zhirov -4/Proximity Caves -4/Factory (discovered 2 exits: *Res / *Upp) -4/Upper Caves (discovered 2 exits: *Upp / *War) -4/Warlord -3/Proximity Caves -3/Research History --------- Turn | Location | Event 11 | -11/Scrapyard | Discovered new exit (range 16) 146 | -11/Scrapyard | Entered Materials 316 | -10/Materials | Build established: Mutant 473 | -10/Materials | Discovered new exit (range 14) 607 | -10/Materials | Discovered new exit (range 8) 646 | -10/Materials | Derelicts attacked the area 701 | -10/Materials | Discovered new exit (range 6) 794 | -10/Materials | Discovered new exit (range 11) 1515 | -10/Materials | Discovered new exit (range 13) 1678 | -10/Materials | Discovered new exit (range 3) 1680 | -10/Materials | Core integrity fell below 50% 1782 | -10/Materials | Learned location of Subcaves (-10) 1825 | -10/Materials | Learned Storage security intel 1879 | -10/Materials | Learned location of 1 exit from Recycling 1893 | -10/Materials | Identified exit to Materials 1896 | -10/Materials | Learned location of Storage (-7) 1897 | -10/Materials | Learned 2 Materials zone layouts 1919 | -10/Materials | Learned 2 Mines zone layouts 1985 | -10/Materials | Learned location of 1 exit from Storage 2046 | -10/Materials | Entered another Materials area 2046 | -9/Materials | Evolved 2 slots: Propulsion x1, Weapon x1 2047 | -9/Materials | Identified exit to Materials 2148 | -9/Materials | Repaired Lgt. Treads 2342 | -9/Materials | Destroyed 7 combat bots 2511 | -9/Materials | Build established: Tank 2831 | -9/Materials | Discovered new exit (range 12) 2871 | -9/Materials | Learned Storage emergency access door positions 2911 | -9/Materials | Learned Storage terminal intel 2962 | -9/Materials | Learned location of Recycling (-7) 2978 | -9/Materials | Learned 4 Materials zone layouts 3124 | -9/Materials | Identified exit to Mines 3237 | -9/Materials | Build established: Scavenger-Tank 4536 | -9/Materials | Build established: Tank 4572 | -9/Materials | Entered Mines 4576 | -9/Mines | Central database locked down 4735 | -9/Mines | Found a damaged Exp. Sensor Array with a note attached 4738 | -9/Mines | Found Prototype Device 4746 | -9/Mines | Identified Exp. Sensor Array 4759 | -9/Mines | Received a Rocket Launcher from a helpful Derelict 4835 | -9/Mines | Deemed a non-threat by the Exiles lab entrance 4836 | -9/Mines | Discovered new exit (range 5) 4877 | -9/Mines | Build established: Gunner 5160 | -9/Mines | A Derelict revealed a hidden shortcut to a safe place 5184 | -9/Mines | Learned location of 1 exit from Lower Caves 5358 | -9/Mines | Met a Derelict shopkeep closing up shop 5433 | -9/Mines | Entered Materials 5433 | -8/Materials | Evolved 2 slots: Propulsion x1, Utility x1 5737 | -8/Materials | Build established: Tank 6061 | -8/Materials | Discovered new exit (range 12) 6779 | -8/Materials | Build established: Scavenger-Tank 6817 | -8/Materials | Identified exit to Factory 6925 | -8/Materials | Entered Factory 6925 | -7/Factory | Evolved 2 slots: Utility x1, Weapon x1 7230 | -7/Factory | Discovered new exit (range 11) 7264 | -7/Factory | Identified exit to Storage 7538 | -7/Factory | Build established: Scavenger-Skirmisher 8227 | -7/Factory | Entered Storage 8228 | -7/Storage | Identified exit to Recycling 8231 | -7/Storage | Loaded intel: 15 terminal locations 8517 | -7/Storage | Met a pair of Derelict thieves 8535 | -7/Storage | Used back door to open Recycling access 8578 | -7/Storage | Build established: Scavenger-Tank 8668 | -7/Storage | Destroyed 7 combat bots 9081 | -7/Storage | Entered Recycling 9082 | -7/Recycling | Identified exit to Scraptown 9885 | -7/Recycling | Discovered new exit (range 16) 9983 | -7/Recycling | Scanned before Scraplab entrance 10055 | -7/Recycling | Entered Scraplab 10075 | -7/Recycling | Entered Scraptown 10075 | -7/Scraptown | Accompanied by 5 allies 10075 | -7/Scraptown | System corruption cleaned by C-Scrubber 10141 | -7/Scraptown | Visited Cave Peace 10187 | -7/Scraptown | Visited Symbiants 10243 | -7/Scraptown | Visited Junk Repository 10275 | -7/Scraptown | Visited Science Testing Area 10319 | -7/Scraptown | Visited CPS Storage 10336 | -7/Scraptown | Visited Fellowship of the Rings 10709 | -7/Scraptown | Heard Great Nut preacher, LISTEN AND RECITE! 10999 | -7/Scraptown | Discovered new exit (range 11) 11084 | -7/Scraptown | Visited UFD Registry 11084 | -7/Scraptown | Registered with UFD as "Nullslicer" 11145 | -7/Scraptown | Visited Scrapoid Pod Storage 11154 | -7/Scraptown | Found Scrapoid Pod 11185 | -7/Scraptown | Visited Botcube Research 11239 | -7/Scraptown | Visited Analyses Database 11277 | -7/Scraptown | Visited Junk Repository 11388 | -7/Scraptown | Visited Research Penetration Think Tank 11461 | -7/Scraptown | Visited Scrap Suit Storage 11548 | -7/Scraptown | Visited Abandonware Association 11565 | -7/Scraptown | Learned abandonware demo "OVRCLOCK.EXE" 11617 | -7/Scraptown | Learned abandonware demo "TRNCOAT.EXE" 12054 | -7/Scraptown | Visited Science Guys 12133 | -7/Scraptown | Visited Curators Association 12323 | -7/Scraptown | Met Optimus 12323 | -7/Scraptown | Accepted into 0bPrime 12723 | -7/Scraptown | Civil war broke out across Scraptown 12877 | -7/Scraptown | Lost 8 allies 12929 | -7/Scraptown | Scrapoid Pod released 07S05-D (x5) 12959 | -7/Scraptown | Lost 3 allies 12998 | -7/Scraptown | Found Botcube 13040 | -7/Scraptown | Botcube activated 13049 | -7/Scraptown | Lost 4 allies 13062 | -7/Scraptown | Botcube completed mutation into legged form, armed with 2 guns. 13105 | -7/Scraptown | Discovered new exit (range 3) 13131 | -7/Scraptown | Entered Factory 13131 | -5/Factory | Accompanied by 9 allies 13131 | -5/Factory | Evolved 4 slots: Power x1, Utility x3 13282 | -5/Factory | Fabricated T-07 Excavator? 13309 | -5/Factory | Lost 4 parts (1n1u2w) 13474 | -5/Factory | Fabricated KE Penetrator (x2) 13554 | -5/Factory | Lost 6 allies 13562 | -5/Factory | Build established: Scavenger-Gunner 13665 | -5/Factory | Destroyed 10 combat bots 13680 | -5/Factory | Garrison activated, responded to threat 13816 | -5/Factory | Cargo convoy interrupted 13911 | -5/Factory | Found Prototype Processor 13911 | -5/Factory | Identified Exp. Core Analyzer 13919 | -5/Factory | Found Exp. Core Analyzer 13923 | -5/Factory | Lost 9 parts (1p3n2u3w) 14001 | -5/Factory | Found Exp. Core Analyzer 14342 | -5/Factory | Build established: Scavenger-Tank 14631 | -5/Factory | First assault squad dispatched 14659 | -5/Factory | Discovered new exit (range 15) 15014 | -5/Factory | Entered Upper Caves 15089 | -5/Upper Caves | Spotted B-75 Beast 15103 | -5/Upper Caves | Destroyed B-75 Beast 15277 | -5/Upper Caves | Discovered new exit (range 14) 15386 | -5/Upper Caves | Build established: Scavenger-Gunner 15486 | -5/Upper Caves | Entered another Upper Caves area 15542 | -5/Upper Caves | Discovered new exit (range 5) 16009 | -5/Upper Caves | Discovered new exit (range 7) 16046 | -5/Upper Caves | Entered Zhirov 16046 | -5/Zhirov | Discovered new exit (range 3) 16073 | -5/Zhirov | Met Zhirov 16102 | -5/Zhirov | Learned location of Quarantine (-2) 16102 | -5/Zhirov | Learned location of Testing (-3) 16102 | -5/Zhirov | Learned location of Command (-1) 16127 | -5/Zhirov | Zhirov requested help retrieving the SGEMP Prototype 16149 | -5/Zhirov | Found Alien Artifact 16167 | -5/Zhirov | Found Alien Artifact 16167 | -5/Zhirov | Identified Integrated Dissipator 16167 | -5/Zhirov | Installed Integrated Dissipator, increased core heat dissipation (+20) 16329 | -5/Zhirov | Entered Proximity Caves 16331 | -4/Proximity Caves | Learned Research garrison access intel 16825 | -4/Proximity Caves | Discovered new exit (range 9) 16853 | -4/Proximity Caves | Entered Factory 16853 | -4/Factory | Evolved 2 slots: Propulsion x1, Utility x1 17087 | -4/Factory | Discovered new exit (range 14) 17125 | -4/Factory | Identified exit to Research 17684 | -4/Factory | Loaded intel: 8 recycling unit locations 17808 | -4/Factory | Discovered new exit (range 10) 17878 | -4/Factory | Identified exit to Upper Caves 17926 | -4/Factory | Entered Upper Caves 18281 | -4/Upper Caves | Attracted the attention of an 0b10 outpost 18489 | -4/Upper Caves | Learned Research terminal intel 18704 | -4/Upper Caves | A Derelict revealed a hidden shortcut to "reach the base" 18705 | -4/Upper Caves | Discovered new exit (range 11) 18719 | -4/Upper Caves | Identified exit to Upper Caves 18727 | -4/Upper Caves | Identified exit to Warlord 18876 | -4/Upper Caves | Entered Warlord 18876 | -4/Warlord | Accompanied by 1 ally 19180 | -4/Warlord | Rebuked by Warlord 19205 | -4/Warlord | Warlord's base attacked by MAIN.C 19530 | -4/Warlord | Warlord forces counterattacked 19549 | -4/Warlord | Spotted B-90 Cyclops 19580 | -4/Warlord | Spotted B-86 Titan 19586 | -4/Warlord | Spotted Striker 19642 | -4/Warlord | Lost 14 allies 19668 | -4/Warlord | Spotted Executioner 19683 | -4/Warlord | Spotted Executioner 19702 | -4/Warlord | Destroyed Executioner 19727 | -4/Warlord | Found Prototype Processor 19731 | -4/Warlord | Spotted Striker 19736 | -4/Warlord | P-80 Master assimilated allied P0-CBI(g) 19745 | -4/Warlord | Destroyed Striker 19755 | -4/Warlord | Spotted Striker 19775 | -4/Warlord | System corruption reached 10% 19779 | -4/Warlord | Lost 20 allies 19787 | -4/Warlord | Identified Exp. Targeting Computer 19850 | -4/Warlord | Crushed by falling debris 19851 | -4/Warlord | Spotted Executioner 19855 | -4/Warlord | Identified Transdimensional Reconstructor 19855 | -4/Warlord | Warped through subspace 19856 | -4/Warlord | Core integrity fell below 50% 19875 | -4/Warlord | Destroyed 7 combat bots 19880 | -4/Warlord | Warlord base infiltrated, sounded retreat 19886 | -4/Warlord | Lost 21 parts (2p7n3u9w) 19963 | -4/Warlord | Spotted Striker 19996 | -4/Warlord | Found Prototype Device 19996 | -4/Warlord | Identified Exp. Thermal Shield 20008 | -4/Warlord | Lost 3 allies 20098 | -4/Warlord | Crushed by falling debris 20124 | -4/Warlord | Spotted Striker 20131 | -4/Warlord | Discovered new exit (range 9) 20142 | -4/Warlord | Identified exit to Proximity Caves 20144 | -4/Warlord | Entered Proximity Caves 20146 | -3/Proximity Caves | Spotter reported a threat 20169 | -3/Proximity Caves | Lost 8 allies 20379 | -3/Proximity Caves | Spotted B-86 Titan 20399 | -3/Proximity Caves | Destroyed B-86 Titan 20415 | -3/Proximity Caves | Received a Behemoth hack from an annoying Tinkerer 20634 | -3/Proximity Caves | Attracted the attention of an 0b10 checkpoint 20736 | -3/Proximity Caves | Attracted the attention of an 0b10 outpost 20758 | -3/Proximity Caves | System corruption reached 30% 20764 | -3/Proximity Caves | Discovered exit to Research (range 11) 20782 | -3/Proximity Caves | Core integrity fell below 20% 20794 | -3/Proximity Caves | Entered Research 20794 | -3/Research | Evolved 2 slots: Propulsion x1, Weapon x1 20795 | -3/Research | Loaded intel: 23 terminal locations 20796 | -3/Research | Loaded intel: 3 garrison access locations 20820 | -3/Research | Lost 9 parts (1p2n3u3w) 21048 | -3/Research | Build established: Scavenger-Mutant 21188 | -3/Research | Spotted B-86 Titan 21430 | -3/Research | Released all parts (9) 21467 | -3/Research | Core integrity fell below 50% 21492 | -3/Research | Core integrity fell below 20% 21497 | -3/Research | Destroyed by S-43 Plague with Heavy Machine Gun Last Messages --------------- 21430_ Released Adv. Trap Scanner. 21430_ Released Adv. Target Analyzer. 21430_ Released Adv. Signal Interpreter. 21430_ Released Enh. Flexi-carbon Leg. 21430_ Released Huge Storage Unit. 21430_ Released Graphene Brace. 21430_ Released Cld. Antimatter Reactor. 21454_ Penetrated by Slug. 21455_ Slug penetrates Wall. 21455_ Penetrated by Slug. 21457_ Slug penetrates Wall. 21457_ Penetrated by Slug. 21466_ U-05 Engineer builds a Wall. 21470_ ALERT: Cargo convoy en route, clear transfer corridor. 21479_ U-05 Engineer builds a Door. 21485_ Slammed into S-43 Plague. 21486_ Destabilizing: Core damaged (-52). 21487_ Slammed into S-43 Plague. 21496_ Acquired 4 matter. 21496_ U-05 Engineer builds a Door. Map ----- +----------------------------------------------------+ | #???????????????#############????????????? | | #????????????????# #?????????????? | | ** #????????????????# !#?????????????? | | ** #????????????????# """ #?????????????? | | #### #????????????????# ""T"" #?????????????? | | # #????????????????# "" "" #?????????????? | | # #????????????????# #?????????????? | | # #????????????????? ??????????????? | | ! # #??????????????????? ????????????????? | | # #??????????????#######+#####?????????????? | | # ################ #?????????????? | | # # / #?????????????? | | # # =##u #?????????????? | | # # ##k #### T# #?????????????? | | #+## / H ## #######+###???????????? | | # """ """ ## u# #???????????? | | # """T""" ## u# #???????????? | | #### %################ u+ !#???????????? | | ???##/###??????????????# u# #???????????? | | ??? ???????????????## k ###########???????????? | | ?? ??????????????# #????????????????????? | | ? ??????######## #????????????????????? | | / k sss #????????????????????? | | ?????######## s #????????????????????? | | ???????????# s s #????????????????????? | | ]] ??????????###@###????????????????????? | | ]] ????????????#s#??????????????????????? | | #???????????#s#??????????????????????? | | #???????????#u ??????????????????????? | | ???????????? s ??????????????????????? | | ???????????? sk??????????????????????? | | ?#########?????????????? ??????????????????????? | | ???????????????????????? s ?????????????????????? | | ???????????????????????? ?????????????????????? | | ???????????????????????? ?????????????????????? | | ??????????????????????? u s?????????????????????? | | ???????????""?????????? #u ????????????????????? | | ???????????T??????????? ? ????????????????????? | | ??????????????????????? ?t ????????????????????? | | ???????????????????????#? ????????????????????? | | ?????????????????????????k ?????????????????????? | | ?????????????????????????????????????????????????? | | ?????????????????????????????????????????????????? | | ?????????????????????????????????????????????????? | | ""???????????????????????????????????????????????? | | "T???????????????????????????????????????????????? | | ""???????????????????????????????????????????????? | | ?????????????????????????????????????????????????? | | ?????????????????????????????????????????????????? | | ?????????????????????????????????????????????????? | +----------------------------------------------------+ Best States ------------- Heat Dissipation 121 Energy Generation 41 Energy Capacity 660 Matter Stores 300 Matter Capacity 300 Sight Range 16 Robot Scan Range 20 Terrain Scan Density 10 Jamming Range 14 Armor Coverage 600 Resistance: TH 30 Resistance: EM 25 Propulsion Shielding 90 Weapon Shielding 33 Weapon Cycling 30 Evasion (%) 70 Targeting Accuracy 18 Target Analysis 8 Core Analysis 12 Armor Integrity Analysis 40 Recoil Reduction 5 Kinecelleration 30 Offensive Hacking 10 Item Schematics ----------------- Lrn. Proton Cannon | -7/Recycling | Hacked Assault Drone Bay | -5/Zhirov | Free Exp. Heat Sink | -5/Zhirov | Free Exp. Optical Array | -5/Zhirov | Free Imp. Arc Thrower | -5/Zhirov | Free Robot Schematics ------------------ None Fabricated ------------ T-07 Excavator | x2 | -5/Factory | Preloaded KE Penetrator | x2 | -5/Factory | Preloaded Repaired ---------- Lgt. Treads | 15% | -9/Materials Alien Tech Used ----------------- Integrated Dissipator Transdimensional Reconstructor Achievements -------------- None Challenges ------------ None Game ------ Seed SurgeCoilFemtoactuators Manual? 0 Play Time 03:12:29 Cumulative 155.6 hours Start 2025.07.30 @ 17:22:10 End 2025.07.30 @ 21:47:52 Sessions 1 Manual Loads 0 Difficulty Rogue Special Mode None Game No. 142 Rogue 142 Adventurer 0 Explorer 0 Win Type - Total 2 Types 2/0/0/0/0/0/0/0/0/0 Lore% 71 Gallery% 64 Achievement% 55 Wizard Run 0 Options --------- Layout 0 ASCII 0 Keyboard 1 Movement Numpad Keybinds 0 Fullscreen 1 Font 24/Terminus Map View 38x25 Zoom Use 0% Tactical HUD 1 Map Filters NONE Filters NONE Steam 1 RUN: f7ce72ba-127e-4f96-ae1b-fad4e0188400